fUST/lending_fUST_20250812
["ID","MTS","AMOUNT","RATE_DAILY","PERIOD"]
[378748775,1755001844248,-460.0,0.00018273,2]
[378748776,1755001844260,-432.08724865,0.00018273,2]
[378748777,1755001844270,-460.0,0.00018273,2]
[378748778,1755001844282,-460.0,0.00018273,2]
[378748779,1755001844292,-460.0,0.00018273,2]
[378748780,1755001844302,-460.0,0.00018273,2]
[378748781,1755001844312,-460.0,0.00018273,2]
[378748782,1755001844322,-460.0,0.00018273,2]
[378748783,1755001844336,-460.0,0.00018273,2]
[378748785,1755001844347,-460.0,0.00018273,2]
[378748786,1755001844359,-460.0,0.00018273,2]
[378748787,1755001844370,-460.0,0.00018273,2]
[378748788,1755001844380,-460.0,0.00018273,2]
[378748789,1755001844390,-460.0,0.00018273,2]
[378748791,1755001844400,-460.0,0.00018273,2]
[378748792,1755001844410,-460.0,0.00018273,2]
[378748794,1755001844420,-460.0,0.00018273,2]
[378748795,1755001844430,-460.0,0.00018273,2]
[378748796,1755001844440,-460.0,0.00018273,2]
[378748797,1755001844450,-460.0,0.00018273,2]
[378748798,1755001844459,-460.0,0.00018273,2]
[378748799,1755001844469,-460.0,0.00018273,2]
[378748800,1755001844479,-460.0,0.00018273,2]
[378748801,1755001844488,-460.0,0.00018273,2]
[378748802,1755001844497,-460.0,0.00018273,2]
[378748803,1755001844508,-586.46,0.00018273,2]
[378748804,1755001844517,-798.89,0.00018273,2]
[378748805,1755001844527,-460.0,0.00018273,2]
[378748806,1755001844537,-483.78,0.00018273,2]
[378748807,1755001844546,-460.0,0.00018273,2]
[378748808,1755001844556,-460.0,0.00018273,2]
[378748809,1755001844566,-460.0,0.00018273,2]
[378748810,1755001844580,-460.0,0.00018273,2]
[378748811,1755001844590,-460.0,0.00018273,2]
[378748812,1755001844600,-460.0,0.00018273,2]
[378748814,1755001844611,-460.0,0.00018273,2]
[378748816,1755001844620,-460.0,0.00018273,2]
[378748818,1755001844629,-1100.68,0.00018273,2]
[378748819,1755001844638,-690.52,0.00018273,2]
[378748820,1755001844648,-460.0,0.00018273,2]
[378748821,1755001844657,-1179.26,0.00018273,2]
[378748822,1755001844666,-460.0,0.00018273,2]
[378748823,1755001844675,-570.13900153,0.00018273,2]
[378748824,1755001844684,-460.0,0.00018273,2]
[378748825,1755001844694,-460.0,0.00018273,2]
[378748826,1755001844704,-648.46,0.00018273,2]
[378748827,1755001844713,-460.0,0.00018273,2]
[378748828,1755001844723,-430.87988343,0.00018273,2]
[378748829,1755001844732,-460.0,0.00018273,2]
[378748830,1755001844741,-1091.78,0.00018273,2]
[378748831,1755001844751,-460.0,0.00018273,2]
[378748832,1755001844761,-460.0,0.00018273,2]
[378748833,1755001844771,-463.83530554,0.00018273,2]
[378748834,1755001844780,-460.0,0.00018273,2]
[378748835,1755001844790,-460.0,0.00018273,2]
[378748836,1755001844800,-460.0,0.00018273,2]
[378748837,1755001844810,-843.83,0.00018273,2]
[378748838,1755001844819,-474.05824517,0.00018273,2]
[378748839,1755001844832,-460.0,0.00018273,2]
[378748840,1755001844842,-1540.86,0.00018273,2]
[378748841,1755001844851,-460.0,0.00018273,2]
[378748842,1755001844862,-465.78916306,0.00018273,2]
[378748843,1755001844871,-276.71472761,0.00018273,2]
[378748844,1755001844880,-460.0,0.00018273,2]
[378748845,1755001844890,-460.0,0.00018273,2]
[378748846,1755001844900,-1700.15,0.00018273,2]
[378748847,1755001844909,-460.0,0.00018273,2]
[378748848,1755001844919,-470.63111393,0.00018273,2]
[378748849,1755001844929,-460.0,0.00018273,2]
[378748850,1755001844938,-460.0,0.00018273,2]
[378748851,1755001844947,-460.0,0.00018273,2]
[378748852,1755001844957,-460.0,0.00018273,2]
[378748853,1755001844967,-466.56388493,0.00018273,2]
[378748854,1755001844976,-460.0,0.00018273,2]
[378748855,1755001844986,-460.0,0.00018273,2]
[378748856,1755001844996,-460.0,0.00018273,2]
[378748857,1755001845005,-473.12372232,0.00018273,2]
[378748858,1755001845015,-460.0,0.00018273,2]
[378748859,1755001845025,-460.0,0.00018273,2]
[378748860,1755001845034,-722.17,0.00018273,2]
[378748861,1755001845044,-460.0,0.00018273,2]
[378748862,1755001845053,-460.0,0.00018273,2]
[378748863,1755001845207,-460.0,0.00018273,2]
[378748864,1755001845217,-460.0,0.00018273,2]
[378748865,1755001845227,-460.0,0.00018273,2]
[378748866,1755001845237,-960.3,0.00018273,2]
[378748867,1755001845247,-460.0,0.00018273,2]
[378748868,1755001845258,-460.0,0.00018273,2]
[378748869,1755001845267,-460.0,0.00018273,2]
[378748870,1755001845277,-470.88975917,0.00018273,2]
[378748871,1755001845290,-460.0,0.00018273,2]
[378748872,1755001845301,-1988.25,0.00018273,2]
[378748873,1755001845311,-460.0,0.00018273,2]
[378748874,1755001845320,-461.6771346,0.00018273,2]
[378748875,1755001845334,-537.4,0.00018273,2]
[378748876,1755001845344,-460.0,0.00018273,2]
[378748877,1755001845355,-460.0,0.00018273,2]
[378748878,1755001845365,-460.0,0.00018273,2]
[378748879,1755001845376,-460.0,0.00018273,2]
[378748880,1755001845387,-371.6452701,0.00018273,2]
[378748881,1755001845397,-460.0,0.00018273,2]
[378748882,1755001845407,-460.0,0.00018273,2]
[378748883,1755001845417,-460.0,0.00018273,2]
[378748884,1755001845426,-460.0,0.00018273,2]
[378748885,1755001845436,-460.0,0.00018273,2]
[378748886,1755001845446,-460.0,0.00018273,2]
[378748887,1755001845456,-195.1987518,0.00018273,2]
[378748888,1755001845466,-460.0,0.00018273,2]
[378748889,1755001845475,-500.0,0.00018273,2]
[378748890,1755001845485,-460.0,0.00018273,2]
[378748891,1755001845495,-460.0,0.00018273,2]
[378748892,1755001845504,-460.0,0.00018273,2]
[378748893,1755001845514,-460.0,0.00018273,2]
[378748894,1755001845524,-2093.8,0.00018273,2]
[378748895,1755001845534,-460.0,0.00018273,2]
[378748896,1755001845544,-460.0,0.00018273,2]
[378748897,1755001845554,-460.0,0.00018273,2]
[378748898,1755001845565,-460.0,0.00018273,2]
[378748899,1755001845575,-460.0,0.00018273,2]
[378748900,1755001845591,-460.0,0.00018273,2]
[378748902,1755001845601,-460.0,0.00018273,2]
[378748904,1755001845612,-460.0,0.00018273,2]
[378748905,1755001845621,-726.36,0.00018273,2]
[378748906,1755001845632,-460.0,0.00018273,2]
[378748907,1755001845643,-460.0,0.00018273,2]
[378748908,1755001845654,-470.06215755,0.00018273,2]
[378748910,1755001845665,-472.46,0.00018273,2]
[378748911,1755001845675,-716.43,0.00018273,2]
[378748912,1755001845686,-460.0,0.00018273,2]
[378748913,1755001845696,-660.76,0.00018273,2]
[378748915,1755001845706,-460.0,0.00018273,2]
[378748917,1755001845717,-500.0,0.00018284,2]
[378748919,1755001845727,-500.0,0.00018284,2]
[378748920,1755001845738,-500.0,0.00018284,2]
[378748921,1755001845747,-500.0,0.00018284,2]
[378748922,1755001845757,-336.39426,0.00018284,4]
[378748923,1755001845766,-460.0,0.00018285,2]
[378748925,1755001845776,-460.0,0.00018285,2]
[378748926,1755001845785,-472.75349022,0.00018285,2]
[378748927,1755001845795,-460.0,0.00018285,2]
[378748928,1755001845805,-840.44,0.00018285,2]
[378748929,1755001845815,-460.0,0.00018285,2]
[378748930,1755001845824,-460.0,0.00018285,2]
[378748931,1755001845840,-460.0,0.00018285,2]
[378748932,1755001845849,-460.0,0.00018285,2]
[378748933,1755001845859,-561.43,0.00018285,2]
[378748934,1755001845869,-460.0,0.00018285,2]
[378748935,1755001845878,-460.0,0.00018285,2]
[378748936,1755001845887,-460.0,0.00018285,2]
[378748937,1755001845897,-460.83948905,0.00018285,2]
[378748938,1755001845906,-460.0,0.00018285,2]
[378748939,1755001845915,-460.0,0.00018285,2]
[378748940,1755001845925,-460.0,0.00018285,2]
[378748941,1755001845934,-460.0,0.00018285,2]
[378748942,1755001845944,-527.65,0.00018285,2]
[378748943,1755001845954,-460.0,0.00018285,2]
[378748944,1755001845964,-460.0,0.00018285,2]
[378748945,1755001845973,-460.0,0.00018285,2]
[378748946,1755001845983,-460.0,0.00018285,2]
[378748947,1755001845992,-460.0,0.00018285,2]
[378748948,1755001846002,-460.0,0.00018285,2]
[378748949,1755001846011,-460.0,0.00018285,2]
[378748950,1755001846021,-460.0,0.00018285,2]
[378748951,1755001846031,-500.0,0.00018285,2]
[378748952,1755001846042,-460.0,0.00018285,2]
[378748953,1755001846052,-462.22509954,0.00018285,2]
[378748954,1755001846062,-460.0,0.00018285,2]
[378748955,1755001846073,-460.0,0.00018285,2]
[378748956,1755001846090,-460.0,0.00018285,2]
[378748957,1755001846100,-873.53,0.00018285,2]
[378748959,1755001846110,-460.0,0.00018285,2]
[378748961,1755001846120,-460.0,0.00018285,2]
[378748963,1755001846129,-460.0,0.00018285,2]
[378748965,1755001846139,-460.0,0.00018285,2]
[378748967,1755001846150,-460.0,0.00018285,2]
[378748969,1755001846160,-1212.06,0.00018285,2]
[378748971,1755001846170,-460.0,0.00018285,2]
[378748973,1755001846180,-376.10920517,0.00018285,2]
[378748975,1755001846190,-460.0,0.00018285,2]
[378748976,1755001846200,-460.0,0.00018285,2]
[378748977,1755001846209,-463.35927157,0.00018285,2]
[378748978,1755001846219,-460.0,0.00018285,2]
[378748979,1755001846229,-500.0,0.00018285,2]
[378748980,1755001846238,-460.0,0.00018285,2]
[378748981,1755001846248,-460.0,0.00018285,2]
[378748982,1755001846262,-460.0,0.00018285,2]
[378748983,1755001846272,-460.0,0.00018285,2]
[378748984,1755001846281,-460.0,0.00018285,2]
[378748985,1755001846291,-460.0,0.00018285,2]
[378748986,1755001846302,-460.0,0.00018285,2]
[378748987,1755001846312,-460.0,0.00018285,2]
[378748988,1755001846322,-460.0,0.00018285,2]
[378748989,1755001846335,-460.0,0.00018285,2]
[378748990,1755001846345,-460.0,0.00018285,2]
[378748991,1755001846355,-460.0,0.00018285,2]
[378748992,1755001846365,-460.0,0.00018286,2]
[378748993,1755001846375,-460.0,0.00018286,2]
[378748994,1755001846384,-500.0,0.00018408,2]
[378748995,1755001846394,-2861.60708631,0.00018416,2]
[378748996,1755001846404,-460.0,0.0001842,2]
[378748997,1755001846414,-460.0,0.0001842,2]
[378748998,1755001846423,-460.0,0.0001842,2]
[378748999,1755001846433,-1036.58,0.0001842,2]
[378749000,1755001846443,-460.0,0.0001842,2]
[378749001,1755001846453,-2283.43,0.0001842,2]
[378749002,1755001846463,-460.0,0.0001842,2]
[378749003,1755001846473,-460.0,0.0001842,2]
[378749004,1755001846482,-460.0,0.0001842,2]
[378749005,1755001846492,-1004.12150487,0.00018421,2]
[378749006,1755001846502,-968.73082083,0.00018421,2]
[378749007,1755001846512,-1000.0,0.00018421,2]
[378749008,1755001846523,-500.81796425,0.00018421,2]
[378749009,1755001846532,-1061.06729624,0.00018421,2]
[378749010,1755001846542,-1057.59296263,0.00018421,2]
[378749011,1755001846551,-1000.0,0.00018421,2]
[378749012,1755001846561,-1009.88605288,0.00018421,2]
[378749013,1755001846571,-1000.0,0.00018421,2]
[378749014,1755001846586,-1001.26138303,0.00018421,2]
[378749015,1755001846596,-500.50977512,0.00018421,2]
[378749016,1755001846605,-704.73304251,0.00018421,2]
[378749017,1755001846614,-1317.23,0.00018447,2]
[378749018,1755001846624,-470.69,0.00018447,2]
[378749019,1755001846633,-1818.54,0.00018447,2]
[378749020,1755001846643,-460.0,0.00018447,2]
[378749021,1755001846653,-460.0,0.00018447,2]
[378749022,1755001846663,-2926.68,0.00018447,2]
[378749023,1755001846674,-1009.34,0.00018447,2]
[378749024,1755001846684,-485.17,0.00018447,2]
[378749025,1755001846693,-460.0,0.00018447,2]
[378749026,1755001846703,-696.18,0.00018447,2]
[378749027,1755001846712,-460.0,0.00018447,2]
[378749028,1755001846722,-769.97,0.00018447,2]
[378749029,1755001846731,-556.78,0.00018447,2]
[378749030,1755001846741,-460.0,0.00018447,2]
[378749031,1755001846750,-634.63,0.00018447,2]
[378749032,1755001846760,-500.0,0.00018448,2]
[378749033,1755001846770,-151.0,0.000185,2]
[378749034,1755001846779,-509.4840268,0.00018521,2]
[378749035,1755001846788,-1005.16945793,0.00018521,2]
[378749036,1755001846797,-1000.0,0.00018521,2]
[378749037,1755001846807,-440.2549464,0.00018521,2]
[378749038,1755001846817,-211.57959969,0.00018521,2]
[378749039,1755001846826,-1000.0,0.00018521,2]
[378749040,1755001846839,-1000.0,0.00018521,2]
[378749041,1755001846848,-1000.0,0.00018521,2]
[378749042,1755001846858,-502.43706856,0.00018521,2]
[378749043,1755001846867,-185.94231455,0.00018521,2]
[378749044,1755001846878,-1000.0,0.00018521,2]
[378749045,1755001846888,-1000.0,0.00018521,2]
[378749046,1755001846898,-236.6667635,0.00018521,2]
[378749047,1755001846908,-547.76989051,0.00018521,2]
[378749048,1755001846917,-576.41,0.00018546,2]
[378749049,1755001846926,-460.0,0.00018546,2]
[378749050,1755001846936,-460.0,0.00018546,2]
[378749051,1755001846946,-460.0,0.00018546,2]
[378749052,1755001846956,-492.12,0.00018546,2]
[378749053,1755001846965,-460.0,0.00018546,2]
[378749054,1755001846975,-460.0,0.00018546,2]
[378749055,1755001846984,-460.0,0.00018546,2]
[378749056,1755001846994,-460.0,0.00018546,2]
[378749057,1755001847004,-460.0,0.00018546,2]
[378749058,1755001847013,-554.22,0.00018546,2]
[378749059,1755001847023,-460.0,0.00018546,2]
[378749060,1755001847033,-460.0,0.00018546,2]
[378749061,1755001847042,-460.0,0.00018546,2]
[378749062,1755001847051,-460.0,0.00018546,2]
[378749063,1755001847061,-6452.56,0.00018546,2]
[378749064,1755001847070,-1955.18,0.00018546,2]
[378749065,1755001847084,-2570.16,0.00018546,2]
[378749066,1755001847093,-460.0,0.00018547,2]
[378749067,1755001847103,-460.0,0.00018547,2]
[378749068,1755001847113,-460.0,0.00018547,2]
[378749069,1755001847122,-654.54,0.00018547,2]
[378749070,1755001847132,-460.0,0.00018547,2]
[378749071,1755001847141,-460.0,0.00018547,2]
[378749072,1755001847151,-460.0,0.00018547,2]
[378749073,1755001847161,-460.0,0.00018547,2]
[378749074,1755001847170,-460.0,0.00018547,2]
[378749075,1755001847180,-460.0,0.00018547,2]
[378749076,1755001847192,-460.0,0.00018547,2]
[378749077,1755001847202,-460.0,0.00018547,2]
[378749078,1755001847212,-460.0,0.00018547,2]
[378749079,1755001847223,-460.0,0.00018547,2]
[378749080,1755001847233,-460.0,0.00018547,2]
[378749081,1755001847243,-460.0,0.00018547,2]
[378749082,1755001847264,-460.0,0.00018547,2]
[378749083,1755001847285,-460.0,0.00018547,2]
[378749084,1755001847299,-460.0,0.00018547,2]
[378749085,1755001847308,-460.0,0.00018547,2]
[378749086,1755001847320,-460.0,0.00018547,2]
[378749087,1755001847333,-460.0,0.00018547,2]
[378749088,1755001847343,-460.0,0.00018547,2]
[378749089,1755001847353,-586.46,0.00018547,2]
[378749090,1755001847365,-798.89,0.00018547,2]
[378749091,1755001847375,-483.78,0.00018547,2]
[378749092,1755001847385,-460.0,0.00018547,2]
[378749093,1755001847395,-460.0,0.00018547,2]
[378749094,1755001847405,-455.0548603,0.00018547,2]
[378749095,1755001847415,-460.0,0.00018547,2]
[378749096,1755001847424,-460.0,0.00018547,2]
[378749097,1755001847434,-460.0,0.00018547,2]
[378749098,1755001847444,-1100.68,0.00018547,2]
[378749099,1755001847453,-690.52,0.00018547,2]
[378749100,1755001847463,-460.0,0.00018547,2]
[378749101,1755001847473,-1179.26,0.00018547,2]
[378749102,1755001847482,-460.0,0.00018547,2]
[378749103,1755001847492,-460.0,0.00018547,2]
[378749104,1755001847502,-648.46,0.00018547,2]
[378749105,1755001847512,-460.0,0.00018547,2]
[378749106,1755001847521,-460.0,0.00018547,2]
[378749107,1755001847531,-1091.78,0.00018547,2]
[378749108,1755001847541,-460.0,0.00018547,2]
[378749109,1755001847551,-460.0,0.00018547,2]
[378749110,1755001847561,-460.0,0.00018547,2]
[378749111,1755001847570,-843.83,0.00018547,2]
[378749112,1755001847584,-460.0,0.00018547,2]
[378749113,1755001847594,-1540.86,0.00018547,2]
[378749114,1755001847604,-460.0,0.00018547,2]
[378749115,1755001847613,-460.0,0.00018547,2]
[378749116,1755001847623,-460.96902226,0.00018547,2]
[378749117,1755001847643,-1700.15,0.00018547,2]
[378749118,1755001847667,-460.0,0.00018547,2]
[378749119,1755001847679,-460.0,0.00018547,2]
[378749120,1755001847689,-460.0,0.00018547,2]
[378749121,1755001847699,-461.45377537,0.00018547,2]
[378749122,1755001847709,-460.0,0.00018547,2]
[378749123,1755001847719,-722.17,0.00018547,2]
[378749124,1755001847728,-460.0,0.00018547,2]
[378749125,1755001847737,-460.0,0.00018547,2]
[378749126,1755001847747,-460.0,0.00018547,2]
[378749127,1755001847795,-960.3,0.00018547,2]
[378749128,1755001847804,-460.0,0.00018547,2]
[378749129,1755001847814,-1988.25,0.00018547,2]
[378749130,1755001847823,-516.16,0.00018547,2]
[378749131,1755001847837,-537.4,0.00018547,2]
[378749132,1755001847848,-460.0,0.00018547,2]
[378749133,1755001847857,-460.0,0.00018547,2]
[378749134,1755001847867,-460.0,0.00018547,2]
[378749135,1755001847877,-460.0,0.00018547,2]
[378749136,1755001847886,-460.0,0.00018547,2]
[378749137,1755001847896,-460.0,0.00018547,2]
[378749138,1755001847906,-460.0,0.00018547,2]
[378749139,1755001847916,-477.26770397,0.00018547,2]
[378749140,1755001847925,-2093.8,0.00018547,2]
[378749141,1755001847935,-460.0,0.00018547,2]
[378749142,1755001847944,-460.0,0.00018547,2]
[378749143,1755001847954,-460.0,0.00018547,2]
[378749144,1755001847963,-460.0,0.00018547,2]
[378749145,1755001847972,-460.0,0.00018547,2]
[378749146,1755001847982,-460.0,0.00018547,2]
[378749147,1755001847991,-460.0,0.00018547,2]
[378749148,1755001848000,-726.36,0.00018547,2]
[378749149,1755001848010,-460.0,0.00018547,2]
[378749150,1755001848020,-460.0,0.00018547,2]
[378749151,1755001848029,-472.46,0.00018547,2]
[378749152,1755001848039,-716.43,0.00018547,2]
[378749153,1755001848049,-455.0,0.00018547,2]
[378749154,1755001848058,-660.76,0.00018547,2]
[378749155,1755001848067,-460.0,0.00018547,2]
[378749156,1755001848077,-500.0,0.00018558,2]
[378749157,1755001848091,-500.0,0.00018558,2]
[378749158,1755001848101,-460.0,0.00018559,2]
[378749159,1755001848111,-460.0,0.00018559,2]
[378749160,1755001848121,-840.44,0.00018559,2]
[378749161,1755001848131,-460.0,0.00018559,2]
[378749162,1755001848141,-460.0,0.00018559,2]
[378749163,1755001848152,-460.0,0.00018559,2]
[378749164,1755001848164,-561.43,0.00018559,2]
[378749165,1755001848174,-484.62179445,0.00018559,2]
[378749166,1755001848185,-460.0,0.00018559,2]
[378749167,1755001848194,-460.0,0.00018559,2]
[378749168,1755001848204,-460.0,0.00018559,2]
[378749169,1755001848213,-460.0,0.00018559,2]
[378749170,1755001848222,-460.0,0.00018559,2]
[378749171,1755001848232,-460.0,0.00018559,2]
[378749172,1755001848243,-527.65,0.00018559,2]
[378749173,1755001848257,-460.0,0.00018559,2]
[378749174,1755001848267,-460.0,0.00018559,2]
[378749175,1755001848278,-460.0,0.00018559,2]
[378749176,1755001848291,-460.0,0.00018559,2]
[378749177,1755001848302,-460.0,0.00018559,2]
[378749178,1755001848312,-460.0,0.00018559,2]
[378749179,1755001848322,-460.0,0.00018559,2]
[378749180,1755001848335,-460.0,0.00018559,2]
[378749181,1755001848346,-500.0,0.00018559,2]
[378749182,1755001848356,-363.05403582,0.00018559,2]
[378749183,1755001848366,-462.72735961,0.00018559,2]
[378749184,1755001848376,-460.0,0.00018559,2]
[378749185,1755001848386,-460.0,0.00018559,2]
[378749186,1755001848396,-873.53,0.00018559,2]
[378749187,1755001848406,-461.18252454,0.00018559,2]
[378749188,1755001848415,-460.0,0.00018559,2]
[378749189,1755001848425,-460.0,0.00018559,2]
[378749190,1755001848435,-460.0,0.00018559,2]
[378749191,1755001848445,-460.0,0.00018559,2]
[378749192,1755001848454,-1212.06,0.00018559,2]
[378749193,1755001848464,-311.1730316,0.00018559,2]
[378749194,1755001848474,-460.0,0.00018559,2]
[378749195,1755001848484,-460.0,0.00018559,2]
[378749196,1755001848494,-460.0,0.00018559,2]
[378749197,1755001848505,-500.0,0.00018559,2]
[378749198,1755001848514,-460.0,0.00018559,2]
[378749199,1755001848524,-460.0,0.00018559,2]
[378749200,1755001848534,-460.0,0.00018559,2]
[378749201,1755001848544,-460.0,0.00018559,2]
[378749202,1755001848554,-460.0,0.00018559,2]
[378749203,1755001848564,-460.0,0.00018559,2]
[378749204,1755001848574,-460.0,0.00018559,2]
[378749205,1755001848588,-460.0,0.00018559,2]
[378749206,1755001848597,-460.0,0.00018559,2]
[378749207,1755001848608,-460.0,0.00018559,2]
[378749208,1755001848618,-460.0,0.00018559,2]
[378749209,1755001848627,-505.88,0.0001856,2]
[378749210,1755001848638,-151.0,0.000186,2]
[378749211,1755001848647,-460.0,0.00018694,2]
[378749212,1755001848657,-460.0,0.00018694,2]
[378749213,1755001848666,-460.0,0.00018694,2]
[378749214,1755001848676,-1036.58,0.00018694,2]
[378749215,1755001848686,-460.0,0.00018694,2]
[378749216,1755001848695,-2283.43,0.00018694,2]
[378749217,1755001848705,-460.0,0.00018694,2]
[378749218,1755001848714,-460.0,0.00018694,2]
[378749219,1755001848724,-460.0,0.00018694,2]
[378749220,1755001848734,-500.0,0.00018714,2]
[378749221,1755001848744,-500.0,0.00018714,2]
[378749222,1755001848753,-500.0,0.00018714,2]
[378749223,1755001848763,-160.0,0.00018717,3]
[378749224,1755001848773,-1317.23,0.00018721,2]
[378749225,1755001848784,-470.69,0.00018721,2]
[378749226,1755001848794,-1818.54,0.00018721,2]
[378749227,1755001848803,-460.0,0.00018721,2]
[378749228,1755001848813,-460.0,0.00018721,2]
[378749229,1755001848822,-2926.68,0.00018721,2]
[378749230,1755001848834,-1009.34,0.00018721,2]
[378749231,1755001848843,-485.17,0.00018721,2]
[378749232,1755001848854,-460.0,0.00018721,2]
[378749233,1755001848863,-696.18,0.00018721,2]
[378749234,1755001848873,-460.0,0.00018721,2]
[378749235,1755001848883,-769.97,0.00018721,2]
[378749236,1755001848892,-556.78,0.00018721,2]
[378749237,1755001848902,-634.63,0.00018721,2]
[378749238,1755001848912,-500.0,0.00018722,2]
[378749239,1755001848922,-500.0,0.00018723,2]
[378749240,1755001848932,-500.0,0.00018723,2]
[378749241,1755001848942,-182.57835371,0.00018795,2]
[378749242,1755001848951,-151.0,0.000188,2]
[378749243,1755001848960,-500.0,0.000188,2]
[378749244,1755001848970,-576.41,0.0001882,2]
[378749245,1755001848980,-460.0,0.0001882,2]
[378749246,1755001848990,-460.0,0.0001882,2]
[378749247,1755001849000,-460.0,0.0001882,2]
[378749248,1755001849009,-492.12,0.0001882,2]
[378749249,1755001849019,-460.0,0.0001882,2]
[378749250,1755001849029,-460.0,0.0001882,2]
[378749251,1755001849039,-601.02774622,0.0001882,2]
[378749252,1755001849048,-460.0,0.0001882,2]
[378749253,1755001849058,-460.0,0.0001882,2]
[378749254,1755001849067,-554.22,0.0001882,2]
[378749255,1755001849077,-227.74300921,0.0001882,2]
[378749256,1755001849092,-460.0,0.0001882,2]
[378749257,1755001849101,-460.0,0.0001882,2]
[378749258,1755001849111,-6452.56,0.0001882,2]
[378749259,1755001849121,-1955.18,0.0001882,2]
[378749260,1755001849131,-2570.16,0.0001882,2]
[378749261,1755001849140,-460.0,0.00018821,2]
[378749262,1755001849151,-460.0,0.00018821,2]
[378749263,1755001849161,-460.0,0.00018821,2]
[378749264,1755001849171,-654.54,0.00018821,2]
[378749265,1755001849180,-460.0,0.00018821,2]
[378749266,1755001849190,-460.0,0.00018821,2]
[378749267,1755001849200,-460.0,0.00018821,2]
[378749268,1755001849209,-460.0,0.00018821,2]
[378749269,1755001849219,-284.85469363,0.00018821,2]
[378749270,1755001849229,-460.0,0.00018821,2]
[378749271,1755001849239,-460.0,0.00018821,2]
[378749272,1755001849249,-460.0,0.00018821,2]
[378749273,1755001849259,-460.0,0.00018821,2]
[378749274,1755001849269,-460.0,0.00018821,2]
[378749275,1755001849282,-460.0,0.00018821,2]
[378749276,1755001849292,-460.0,0.00018821,2]
[378749277,1755001849301,-460.0,0.00018821,2]
[378749278,1755001849311,-460.0,0.00018821,2]
[378749279,1755001849322,-460.0,0.00018821,2]
[378749280,1755001849336,-586.46,0.00018821,2]
[378749281,1755001849345,-798.89,0.00018821,2]
[378749282,1755001849356,-483.78,0.00018821,2]
[378749283,1755001849368,-460.0,0.00018821,2]
[378749284,1755001849377,-460.0,0.00018821,2]
[378749285,1755001849387,-460.0,0.00018821,2]
[378749286,1755001849397,-1100.68,0.00018821,2]
[378749287,1755001849407,-690.52,0.00018821,2]
[378749288,1755001849416,-460.0,0.00018821,2]
[378749289,1755001849426,-1179.26,0.00018821,2]
[378749290,1755001849435,-460.0,0.00018821,2]
[378749291,1755001849445,-493.10588641,0.00018821,2]
[378749292,1755001849455,-648.46,0.00018821,2]
[378749293,1755001849465,-460.0,0.00018821,2]
[378749294,1755001849475,-460.0,0.00018821,2]
[378749295,1755001849485,-1091.78,0.00018821,2]
[378749296,1755001849495,-460.0,0.00018821,2]